[Event "Late-Titled-Tuesday-Blitz-September-12-2023"]
[Site "Chess.com"]
[Date "2023.09.12"]
[Round "6"]
[White "zajka-molotok"]
[Black "Good_Knight_Kiss"]
[Result "1-0"]
[WhiteElo "2504"]
[BlackElo "2339"]
[TimeControl "180+1"]
[EndTime "15:03:55 PDT"]
[Termination "zajka-molotok won on time"]

1. e4 {[%clk 0:02:56]} 1... c5 {[%clk 0:02:59.1]} 2. Nf3 {[%clk 0:02:55.1]} 2...
d6 {[%clk 0:02:59.3]} 3. Bb5+ {[%clk 0:02:54.3]} 3... Nd7 {[%clk 0:02:58.8]} 4.
a4 {[%clk 0:02:51.9]} 4... Nf6 {[%clk 0:02:51.1]} 5. Nc3 {[%clk 0:02:37.6]} 5...
a6 {[%clk 0:02:46.3]} 6. Be2 {[%clk 0:02:33.1]} 6... e6 {[%clk 0:02:42.4]} 7.
O-O {[%clk 0:02:32.1]} 7... Be7 {[%clk 0:02:42.3]} 8. a5 {[%clk 0:02:20.1]} 8...
O-O {[%clk 0:02:41.1]} 9. d3 {[%clk 0:02:13.3]} 9... Qc7 {[%clk 0:02:22]} 10.
Bf4 {[%clk 0:02:09.9]} 10... Nh5 {[%clk 0:02:15]} 11. Be3 {[%clk 0:02:07.5]}
11... Nb8 {[%clk 0:02:09.7]} 12. Nd2 {[%clk 0:01:45.2]} 12... Nf6 {[%clk
0:02:06.1]} 13. Nc4 {[%clk 0:01:44.9]} 13... Nfd7 {[%clk 0:01:54.8]} 14. f4
{[%clk 0:01:28.5]} 14... Nc6 {[%clk 0:01:53]} 15. f5 {[%clk 0:01:26.4]} 15...
Nce5 {[%clk 0:01:47.2]} 16. fxe6 {[%clk 0:01:20.3]} 16... fxe6 {[%clk
0:01:46.7]} 17. Rxf8+ {[%clk 0:01:18.8]} 17... Bxf8 {[%clk 0:01:42]} 18. Bf4
{[%clk 0:01:00.7]} 18... Nxc4 {[%clk 0:01:33.4]} 19. dxc4 {[%clk 0:01:01.6]}
19... Ne5 {[%clk 0:01:33.2]} 20. Bxe5 {[%clk 0:00:52.3]} 20... dxe5 {[%clk
0:01:33]} 21. Bg4 {[%clk 0:00:33.4]} 21... Bd7 {[%clk 0:01:21.7]} 22. Nd5 {[%clk
0:00:32.8]} 22... Qc6 {[%clk 0:00:32.1]} 23. Nb6 {[%clk 0:00:32]} 23... Rd8
{[%clk 0:00:31.8]} 24. Qd3 {[%clk 0:00:22.4]} 24... Be7 {[%clk 0:00:30.2]} 25.
Qh3 {[%clk 0:00:17.2]} 25... Kf7 {[%clk 0:00:13.8]} 26. Rf1+ {[%clk 0:00:13.8]}
26... Bf6 {[%clk 0:00:13.9]} 27. Rd1 {[%clk 0:00:14.4]} 27... Be8 {[%clk
0:00:08]} 28. Qxh7 {[%clk 0:00:09.9]} 28... Rxd1+ {[%clk 0:00:06.7]} 29. Bxd1
{[%clk 0:00:10.8]} 29... Bd8 {[%clk 0:00:01.7]} 30. Bh5+ {[%clk 0:00:08.3]}
30... Kf8 {[%clk 0:00:02]} 31. Qh8+ {[%clk 0:00:08.1]} 1-0

[Event "Late-Titled-Tuesday-Blitz-September-12-2023"]
[Site "Chess.com"]
[Date "2023.09.12"]
[Round "6"]
[White "Hasangatin_Ramil"]
[Black "The_Straightforward_Rook"]
[Result "0-1"]
[WhiteElo "2697"]
[BlackElo "2545"]
[TimeControl "180+1"]
[EndTime "15:03:56 PDT"]
[Termination "The_Straightforward_Rook won on time"]

1. e4 {[%clk 0:03:00.9]} 1... e5 {[%clk 0:02:59.9]} 2. Nf3 {[%clk 0:03:00.6]}
2... Nc6 {[%clk 0:03:00.4]} 3. Bb5 {[%clk 0:03:01.1]} 3... Nf6 {[%clk
0:03:00.9]} 4. d3 {[%clk 0:03:00.2]} 4... Bc5 {[%clk 0:03:00.7]} 5. Bxc6 {[%clk
0:03:00.5]} 5... dxc6 {[%clk 0:03:00.2]} 6. Bg5 {[%clk 0:03:01.1]} 6... h6
{[%clk 0:02:54.4]} 7. Bh4 {[%clk 0:03:01]} 7... Qe7 {[%clk 0:02:54.9]} 8. Nbd2
{[%clk 0:03:00.6]} 8... Bg4 {[%clk 0:02:52.4]} 9. h3 {[%clk 0:03:00.2]} 9... Bh5
{[%clk 0:02:51.8]} 10. g4 {[%clk 0:03:00.3]} 10... Bg6 {[%clk 0:02:51.8]} 11.
Nc4 {[%clk 0:03:00.6]} 11... Bd6 {[%clk 0:02:50.7]} 12. Qe2 {[%clk 0:03:00.1]}
12... Qe6 {[%clk 0:02:42.9]} 13. Bxf6 {[%clk 0:02:55.4]} 13... Qxf6 {[%clk
0:02:37.5]} 14. O-O-O {[%clk 0:02:44.8]} 14... O-O-O {[%clk 0:02:36.7]} 15. Kb1
{[%clk 0:02:41.7]} 15... h5 {[%clk 0:02:34.1]} 16. g5 {[%clk 0:02:37.1]} 16...
Qe7 {[%clk 0:02:33.7]} 17. Rhg1 {[%clk 0:02:33.3]} 17... h4 {[%clk 0:02:32.1]}
18. Rde1 {[%clk 0:02:30]} 18... Bh5 {[%clk 0:02:28.5]} 19. Nxd6+ {[%clk
0:02:27.5]} 19... cxd6 {[%clk 0:02:20.9]} 20. Qe3 {[%clk 0:02:28.4]} 20... Bxf3
{[%clk 0:02:07.5]} 21. Qxf3 {[%clk 0:02:29.3]} 21... Qe6 {[%clk 0:02:03]} 22.
Qf5 {[%clk 0:02:24.3]} 22... Qxf5 {[%clk 0:02:00.1]} 23. exf5 {[%clk 0:02:25.2]}
23... g6 {[%clk 0:02:00.6]} 24. f4 {[%clk 0:02:09.7]} 24... exf4 {[%clk
0:01:44]} 25. Ref1 {[%clk 0:02:05.9]} 25... Rde8 {[%clk 0:01:32.2]} 26. Rxf4
{[%clk 0:02:03.3]} 26... Re3 {[%clk 0:01:30.8]} 27. fxg6 {[%clk 0:01:50.6]}
27... fxg6 {[%clk 0:01:31.7]} 28. Rf6 {[%clk 0:01:50.9]} 28... Rxh3 {[%clk
0:01:29.9]} 29. Rxg6 {[%clk 0:01:48.7]} 29... Rg3 {[%clk 0:01:30.4]} 30. Rc1
{[%clk 0:00:19]} 30... h3 {[%clk 0:01:29.8]} 31. Rh6 {[%clk 0:00:19]} 31... Rxh6
{[%clk 0:01:24.7]} 32. gxh6 {[%clk 0:00:19.9]} 32... Rg6 {[%clk 0:01:24.7]} 33.
h7 {[%clk 0:00:16.2]} 33... Rh6 {[%clk 0:01:25.2]} 34. Rh1 {[%clk 0:00:16.4]}
34... Rxh7 {[%clk 0:01:23.8]} 35. Kc1 {[%clk 0:00:17.3]} 35... Kd7 {[%clk
0:01:22.4]} 36. Kd2 {[%clk 0:00:17.9]} 36... Ke6 {[%clk 0:01:22.9]} 37. Ke3
{[%clk 0:00:18.6]} 37... Kf5 {[%clk 0:01:23.2]} 38. Kf3 {[%clk 0:00:19.2]} 38...
h2 {[%clk 0:01:21.5]} 39. Kg3 {[%clk 0:00:18.4]} 39... d5 {[%clk 0:01:16.4]} 40.
Rf1+ {[%clk 0:00:17.7]} 40... Ke5 {[%clk 0:01:15]} 41. Rh1 {[%clk 0:00:10.7]}
41... Kd4 {[%clk 0:01:14.3]} 42. Kf3 {[%clk 0:00:09.8]} 42... b5 {[%clk
0:01:12.7]} 43. Ke2 {[%clk 0:00:09.3]} 43... b4 {[%clk 0:01:12.9]} 44. Kd2
{[%clk 0:00:08.7]} 44... c5 {[%clk 0:01:11.9]} 45. c3+ {[%clk 0:00:09.1]} 45...
Ke5 {[%clk 0:01:09.9]} 46. Ke3 {[%clk 0:00:09.3]} 46... Rh3+ {[%clk 0:01:09.5]}
47. Ke2 {[%clk 0:00:09.7]} 47... d4 {[%clk 0:01:07.2]} 48. cxb4 {[%clk
0:00:09.2]} 48... cxb4 {[%clk 0:01:07.3]} 49. b3 {[%clk 0:00:08.8]} 49... Re3+
{[%clk 0:01:04.9]} 50. Kd2 {[%clk 0:00:07.5]} 50... Rh3 {[%clk 0:01:05.4]} 51.
Ke2 {[%clk 0:00:08.1]} 51... Kf4 {[%clk 0:01:05.3]} 52. Kf2 {[%clk 0:00:03.1]}
52... Rxd3 {[%clk 0:01:04.8]} 53. Kg2 {[%clk 0:00:02.3]} 53... Rd2+ {[%clk
0:01:04.4]} 54. Kh3 {[%clk 0:00:02.7]} 54... Rxa2 {[%clk 0:01:04.4]} 0-1

[Event "Late-Titled-Tuesday-Blitz-September-12-2023"]
[Site "Chess.com"]
[Date "2023.09.12"]
[Round "6"]
[White "Vadim_Biliy"]
[Black "Nigerianprodigy"]
[Result "0-1"]
[WhiteElo "2201"]
[BlackElo "2377"]
[TimeControl "180+1"]
[EndTime "15:03:57 PDT"]
[Termination "Nigerianprodigy won on time"]

1. d4 {[%clk 0:03:00.9]} 1... Nf6 {[%clk 0:02:59.6]} 2. Nf3 {[%clk 0:02:59.9]}
2... g6 {[%clk 0:02:59.4]} 3. e3 {[%clk 0:03:00.1]} 3... Bg7 {[%clk 0:02:59.5]}
4. Be2 {[%clk 0:03:00.7]} 4... O-O {[%clk 0:02:59.7]} 5. O-O {[%clk 0:03:01.3]}
5... b6 {[%clk 0:03:00.1]} 6. b4 {[%clk 0:03:01.5]} 6... Bb7 {[%clk 0:03:00.6]}
7. c3 {[%clk 0:02:58]} 7... a5 {[%clk 0:03:00.7]} 8. b5 {[%clk 0:02:57.7]} 8...
d6 {[%clk 0:02:51.4]} 9. Nbd2 {[%clk 0:02:54.1]} 9... Nbd7 {[%clk 0:02:51]} 10.
Bd3 {[%clk 0:02:52.5]} 10... e5 {[%clk 0:02:50.1]} 11. e4 {[%clk 0:02:45.9]}
11... Re8 {[%clk 0:02:47.7]} 12. Re1 {[%clk 0:02:43.5]} 12... h6 {[%clk
0:02:42.2]} 13. Bb2 {[%clk 0:02:40.2]} 13... Qe7 {[%clk 0:02:41.1]} 14. d5
{[%clk 0:02:21]} 14... Nc5 {[%clk 0:02:39.6]} 15. Nc4 {[%clk 0:02:05.7]} 15...
Rf8 {[%clk 0:02:28.2]} 16. Bc2 {[%clk 0:02:03.5]} 16... Bc8 {[%clk 0:02:26.6]}
17. Ne3 {[%clk 0:02:03.1]} 17... Kh7 {[%clk 0:02:25.8]} 18. Ba3 {[%clk
0:01:52.7]} 18... Nfxe4 {[%clk 0:02:23.8]} 19. Nc4 {[%clk 0:01:28]} 19... Nxc3
{[%clk 0:01:59.7]} 20. Qd2 {[%clk 0:01:18.4]} 20... Nxb5 {[%clk 0:01:54.5]} 21.
Bxc5 {[%clk 0:01:12]} 21... bxc5 {[%clk 0:01:52.2]} 22. Nxa5 {[%clk 0:01:09.3]}
22... Bd7 {[%clk 0:01:42.5]} 23. a4 {[%clk 0:01:02.7]} 23... Nd4 {[%clk
0:01:41.7]} 24. Nxd4 {[%clk 0:01:01.6]} 24... cxd4 {[%clk 0:01:42]} 25. Nc4
{[%clk 0:00:52.8]} 25... Qg5 {[%clk 0:01:38.8]} 26. Qxg5 {[%clk 0:00:45.7]}
26... hxg5 {[%clk 0:01:39.7]} 27. f3 {[%clk 0:00:29.4]} 27... Ra7 {[%clk
0:01:37]} 28. g4 {[%clk 0:00:26.6]} 28... Bf6 {[%clk 0:01:34.1]} 29. a5 {[%clk
0:00:20.2]} 29... Kg7 {[%clk 0:01:33.7]} 30. Bd3 {[%clk 0:00:19.9]} 30... Rfa8
{[%clk 0:01:31.5]} 31. Reb1 {[%clk 0:00:19.2]} 31... Bd8 {[%clk 0:01:26.8]} 32.
Kf2 {[%clk 0:00:18.1]} 32... f5 {[%clk 0:01:20.3]} 33. h3 {[%clk 0:00:17.3]}
33... Kf6 {[%clk 0:01:20]} 34. Ke2 {[%clk 0:00:16.8]} 34... Be7 {[%clk
0:01:18.6]} 35. Kd2 {[%clk 0:00:16.3]} 35... Rh8 {[%clk 0:01:16.4]} 36. Bf1
{[%clk 0:00:14.1]} 36... Be8 {[%clk 0:01:14.8]} 37. Kc2 {[%clk 0:00:11.5]} 37...
Bf7 {[%clk 0:01:15]} 38. Rb5 {[%clk 0:00:09.3]} 38... Rc8 {[%clk 0:01:12.1]} 39.
a6 {[%clk 0:00:08.9]} 39... c6 {[%clk 0:01:11.3]} 40. Rb7 {[%clk 0:00:07.8]}
40... Raa8 {[%clk 0:01:02]} 41. Nb6 {[%clk 0:00:07.8]} 41... cxd5+ {[%clk
0:01:01.4]} 42. Nxc8 {[%clk 0:00:07.8]} 42... Rxc8+ {[%clk 0:01:02.3]} 43. Kd2
{[%clk 0:00:07.7]} 43... e4 {[%clk 0:01:02.1]} 44. a7 {[%clk 0:00:06.9]} 44...
e3+ {[%clk 0:01:02.2]} 45. Kd3 {[%clk 0:00:06.3]} 45... Ke5 {[%clk 0:00:59.4]}
46. Rxe7+ {[%clk 0:00:03.8]} 46... Kf4 {[%clk 0:00:57.5]} 47. Rxf7 {[%clk
0:00:01.4]} 47... Rc3+ {[%clk 0:00:57]} 48. Kxd4 {[%clk 0:00:01.6]} 48... e2
{[%clk 0:00:57.2]} 49. Bxe2 {[%clk 0:00:01.2]} 49... Rc2 {[%clk 0:00:55.8]} 0-1

[Event "Late-Titled-Tuesday-Blitz-September-12-2023"]
[Site "Chess.com"]
[Date "2023.09.12"]
[Round "6"]
[White "andrzej"]
[Black "aNaartjieZA"]
[Result "1-0"]
[WhiteElo "2440"]
[BlackElo "2539"]
[TimeControl "180+1"]
[EndTime "15:03:58 PDT"]
[Termination "andrzej won by resignation"]

1. e4 {[%clk 0:03:00.9]} 1... e6 {[%clk 0:02:58.8]} 2. d4 {[%clk 0:02:55.5]}
2... d5 {[%clk 0:02:58.9]} 3. Nc3 {[%clk 0:02:55.2]} 3... Bb4 {[%clk 0:02:58.7]}
4. e5 {[%clk 0:02:55.4]} 4... c5 {[%clk 0:02:58.4]} 5. a3 {[%clk 0:02:55.5]}
5... Bxc3+ {[%clk 0:02:58.8]} 6. bxc3 {[%clk 0:02:56.4]} 6... Ne7 {[%clk
0:02:59.2]} 7. Qg4 {[%clk 0:02:56.8]} 7... Qc7 {[%clk 0:02:59.2]} 8. Bd3 {[%clk
0:02:54.6]} 8... cxd4 {[%clk 0:02:57.3]} 9. Ne2 {[%clk 0:02:54.6]} 9... dxc3
{[%clk 0:02:55.2]} 10. Qxg7 {[%clk 0:02:52.9]} 10... Rg8 {[%clk 0:02:55.3]} 11.
Qxh7 {[%clk 0:02:52.2]} 11... Nbc6 {[%clk 0:02:54.3]} 12. f4 {[%clk 0:02:12.5]}
12... b6 {[%clk 0:02:26.6]} 13. a4 {[%clk 0:02:09]} 13... Bb7 {[%clk 0:02:24.8]}
14. Ba3 {[%clk 0:02:08.8]} 14... Rxg2 {[%clk 0:01:53.8]} 15. h4 {[%clk
0:01:48.6]} 15... O-O-O {[%clk 0:01:13.9]} 16. Qxf7 {[%clk 0:01:46.1]} 16... Qd7
{[%clk 0:01:13]} 17. Bb5 {[%clk 0:01:39.9]} 17... Rdg8 {[%clk 0:01:01.8]} 18. h5
{[%clk 0:01:25.2]} 18... Nf5 {[%clk 0:01:00.9]} 19. Qxd7+ {[%clk 0:01:23]} 19...
Kxd7 {[%clk 0:01:01]} 20. Bd3 {[%clk 0:00:56.5]} 20... d4 {[%clk 0:00:42]} 21.
O-O-O {[%clk 0:00:45.9]} 21... Ne3 {[%clk 0:00:33.9]} 22. Rdg1 {[%clk
0:00:39.1]} 22... Rxg1+ {[%clk 0:00:33.9]} 23. Rxg1 {[%clk 0:00:39.5]} 23...
Rxg1+ {[%clk 0:00:33.7]} 24. Nxg1 {[%clk 0:00:40.4]} 24... Ng4 {[%clk
0:00:33.8]} 25. Be4 {[%clk 0:00:32.1]} 25... Ba6 {[%clk 0:00:24.1]} 26. Nf3
{[%clk 0:00:28.6]} 26... Ne7 {[%clk 0:00:16]} 27. Nxd4 {[%clk 0:00:23.3]} 27...
Bc4 {[%clk 0:00:16.3]} 28. Bxe7 {[%clk 0:00:15.4]} 28... Kxe7 {[%clk 0:00:16.4]}
29. Nc6+ {[%clk 0:00:16.3]} 29... Kf7 {[%clk 0:00:16.6]} 30. Nxa7 {[%clk
0:00:16.8]} 30... Nf2 {[%clk 0:00:16.7]} 31. Bf3 {[%clk 0:00:15.4]} 31... Nh3
{[%clk 0:00:17]} 32. Nc8 {[%clk 0:00:13.8]} 32... Ba6 {[%clk 0:00:16.8]} 33.
Nxb6 {[%clk 0:00:13.5]} 33... Nxf4 {[%clk 0:00:16.6]} 34. Nd7 {[%clk 0:00:12.1]}
34... Ke7 {[%clk 0:00:16.6]} 35. Nc5 {[%clk 0:00:12]} 35... Bc4 {[%clk
0:00:16.8]} 36. a5 {[%clk 0:00:12.5]} 36... Kd8 {[%clk 0:00:16.4]} 37. a6 {[%clk
0:00:12.3]} 37... Bxa6 {[%clk 0:00:16.8]} 38. Nxa6 {[%clk 0:00:12.4]} 1-0

[Event "Late-Titled-Tuesday-Blitz-September-12-2023"]
[Site "Chess.com"]
[Date "2023.09.12"]
[Round "6"]
[White "Njal28"]
[Black "temus_galaktionov"]
[Result "1-0"]
[WhiteElo "3114"]
[BlackElo "2839"]
[TimeControl "180+1"]
[EndTime "15:03:59 PDT"]
[Termination "Njal28 won on time"]

1. d4 {[%clk 0:03:00.9]} 1... c6 {[%clk 0:02:57.7]} 2. Nf3 {[%clk 0:03:00.1]}
2... g6 {[%clk 0:02:55.6]} 3. e4 {[%clk 0:02:59.8]} 3... Bg7 {[%clk 0:02:55.9]}
4. Be2 {[%clk 0:02:56]} 4... d6 {[%clk 0:02:56.8]} 5. O-O {[%clk 0:02:55.9]}
5... Nd7 {[%clk 0:02:57.4]} 6. Nc3 {[%clk 0:02:56]} 6... e5 {[%clk 0:02:57.9]}
7. d5 {[%clk 0:02:43.7]} 7... c5 {[%clk 0:02:57.2]} 8. Nb5 {[%clk 0:02:43.6]}
8... Nb8 {[%clk 0:02:51.3]} 9. a4 {[%clk 0:02:40.4]} 9... Nf6 {[%clk 0:02:51.1]}
10. Nd2 {[%clk 0:02:39.8]} 10... O-O {[%clk 0:02:43.1]} 11. Bd3 {[%clk 0:02:36]}
11... a6 {[%clk 0:02:40.8]} 12. Nc3 {[%clk 0:02:35.3]} 12... b6 {[%clk
0:02:33.2]} 13. Nc4 {[%clk 0:02:34.8]} 13... Ne8 {[%clk 0:02:33]} 14. f4 {[%clk
0:02:24.5]} 14... exf4 {[%clk 0:02:21.8]} 15. Bxf4 {[%clk 0:02:25.4]} 15... Ra7
{[%clk 0:02:17.5]} 16. Qd2 {[%clk 0:02:16.6]} 16... Rb7 {[%clk 0:02:16]} 17. e5
{[%clk 0:02:06.1]} 17... dxe5 {[%clk 0:01:59.8]} 18. Bxe5 {[%clk 0:02:04]} 18...
b5 {[%clk 0:01:51.5]} 19. axb5 {[%clk 0:01:59.5]} 19... axb5 {[%clk 0:01:52.4]}
20. Bxg7 {[%clk 0:01:57.6]} 20... Nxg7 {[%clk 0:01:50]} 21. Na5 {[%clk
0:01:39.1]} 21... Rb6 {[%clk 0:01:07]} 22. Bxb5 {[%clk 0:01:36.4]} 22... Bd7
{[%clk 0:01:07.1]} 23. Bxd7 {[%clk 0:01:35.4]} 23... Qxd7 {[%clk 0:01:08]} 24.
Nc4 {[%clk 0:01:33.3]} 24... Rb4 {[%clk 0:01:05.7]} 25. Ne4 {[%clk 0:01:31.8]}
25... f5 {[%clk 0:00:55.2]} 26. Ned6 {[%clk 0:01:08]} 26... Rf6 {[%clk
0:00:53.5]} 27. c3 {[%clk 0:00:59.7]} 27... Ra4 {[%clk 0:00:26.8]} 28. Nb6
{[%clk 0:00:51.7]} 28... Rxa1 {[%clk 0:00:19.1]} 29. Nxd7 {[%clk 0:00:51.6]}
29... Rxf1+ {[%clk 0:00:19.8]} 30. Kxf1 {[%clk 0:00:52.4]} 30... Nxd7 {[%clk
0:00:20.2]} 31. Nc4 {[%clk 0:00:51.8]} 31... Kf7 {[%clk 0:00:19.1]} 32. Qe2
{[%clk 0:00:47.2]} 32... Ne8 {[%clk 0:00:17]} 33. Ne5+ {[%clk 0:00:38.2]} 33...
Nxe5 {[%clk 0:00:16.2]} 34. Qxe5 {[%clk 0:00:39.1]} 34... Rb6 {[%clk 0:00:15.4]}
35. c4 {[%clk 0:00:36.5]} 35... Rb4 {[%clk 0:00:12.7]} 36. d6 {[%clk 0:00:34]}
36... Nxd6 {[%clk 0:00:04.4]} 37. Qxd6 {[%clk 0:00:34.2]} 37... Rxb2 {[%clk
0:00:04.3]} 38. Qxc5 {[%clk 0:00:34.3]} 38... Rb1+ {[%clk 0:00:03.2]} 39. Ke2
{[%clk 0:00:34.2]} 39... Rb2+ {[%clk 0:00:04.1]} 40. Kf3 {[%clk 0:00:33.5]}
40... Ra2 {[%clk 0:00:01.4]} 41. Qc7+ {[%clk 0:00:32.2]} 41... Kf6 {[%clk
0:00:01.4]} 42. Qd8+ {[%clk 0:00:32.1]} 42... Ke5 {[%clk 0:00:01.3]} 43. Qd5+
{[%clk 0:00:30.4]} 43... Kf6 {[%clk 0:00:01.5]} 44. Qd6+ {[%clk 0:00:29]} 1-0

[Event "Late-Titled-Tuesday-Blitz-September-12-2023"]
[Site "Chess.com"]
[Date "2023.09.12"]
[Round "6"]
[White "falzehope0"]
[Black "The_Princess_Moon"]
[Result "0-1"]
[WhiteElo "2373"]
[BlackElo "2275"]
[TimeControl "180+1"]
[EndTime "15:04:06 PDT"]
[Termination "The_Princess_Moon won by resignation"]

1. d4 {[%clk 0:03:00.9]} 1... c5 {[%clk 0:03:00.9]} 2. e3 {[%clk 0:02:58.4]}
2... cxd4 {[%clk 0:03:01.8]} 3. exd4 {[%clk 0:02:58.3]} 3... d6 {[%clk
0:03:02.5]} 4. f4 {[%clk 0:02:57.5]} 4... Nf6 {[%clk 0:03:03.1]} 5. Bd3 {[%clk
0:02:57.1]} 5... g6 {[%clk 0:03:03.9]} 6. Nf3 {[%clk 0:02:57.4]} 6... Bg7 {[%clk
0:03:04.3]} 7. O-O {[%clk 0:02:57.8]} 7... O-O {[%clk 0:03:04.3]} 8. Qe1 {[%clk
0:02:54.7]} 8... a6 {[%clk 0:03:05.2]} 9. Nbd2 {[%clk 0:02:53.2]} 9... Nc6
{[%clk 0:03:00.1]} 10. c3 {[%clk 0:02:52.3]} 10... b5 {[%clk 0:02:59]} 11. a3
{[%clk 0:02:51.5]} 11... Rb8 {[%clk 0:02:48.9]} 12. Kh1 {[%clk 0:02:48.4]} 12...
a5 {[%clk 0:02:36.8]} 13. Ne4 {[%clk 0:02:39.3]} 13... Nxe4 {[%clk 0:02:27]} 14.
Bxe4 {[%clk 0:02:40.2]} 14... d5 {[%clk 0:02:26.3]} 15. Bd3 {[%clk 0:02:39.9]}
15... Bg4 {[%clk 0:02:24.4]} 16. Ne5 {[%clk 0:02:38.8]} 16... Nxe5 {[%clk
0:02:22]} 17. fxe5 {[%clk 0:02:39.7]} 17... Be6 {[%clk 0:02:16.6]} 18. Bf4
{[%clk 0:02:28.9]} 18... b4 {[%clk 0:02:10.9]} 19. cxb4 {[%clk 0:02:26.6]} 19...
axb4 {[%clk 0:02:11.8]} 20. a4 {[%clk 0:02:26]} 20... b3 {[%clk 0:02:06.6]} 21.
Bb5 {[%clk 0:02:23.2]} 21... Qb6 {[%clk 0:01:57.4]} 22. Qd2 {[%clk 0:02:10.7]}
22... Rfc8 {[%clk 0:01:55.7]} 23. Rac1 {[%clk 0:02:06.4]} 23... Bf5 {[%clk
0:01:52.2]} 24. Rc3 {[%clk 0:01:52.8]} 24... Rxc3 {[%clk 0:01:48.7]} 25. Qxc3
{[%clk 0:01:52.2]} 25... Rc8 {[%clk 0:01:43.5]} 26. Qxb3 {[%clk 0:01:44.2]}
26... Qxd4 {[%clk 0:01:42.5]} 27. Bg3 {[%clk 0:01:36.8]} 27... Qd2 {[%clk
0:01:27.8]} 28. Bf4 {[%clk 0:01:08.3]} 28... Qd4 {[%clk 0:01:10.9]} 29. Bg3
{[%clk 0:00:32.4]} 29... h5 {[%clk 0:01:04.5]} 30. Be2 {[%clk 0:00:20.7]} 30...
Qd2 {[%clk 0:00:57.8]} 31. Bf3 {[%clk 0:00:18.9]} 31... Rc1 {[%clk 0:00:46.5]}
32. Rxc1 {[%clk 0:00:16.9]} 32... Qxc1+ {[%clk 0:00:47.4]} 33. Qd1 {[%clk
0:00:17.1]} 33... Qxb2 {[%clk 0:00:43.2]} 34. Bxd5 {[%clk 0:00:13.9]} 34... e6
{[%clk 0:00:40]} 35. Bf3 {[%clk 0:00:13.3]} 35... Bxe5 {[%clk 0:00:36]} 36. Bxe5
{[%clk 0:00:12.7]} 36... Qxe5 {[%clk 0:00:36.9]} 37. h3 {[%clk 0:00:12.6]} 37...
Be4 {[%clk 0:00:32.3]} 38. Bxe4 {[%clk 0:00:09.2]} 38... Qxe4 {[%clk 0:00:33.2]}
39. Qa1 {[%clk 0:00:09.3]} 39... g5 {[%clk 0:00:21.7]} 40. a5 {[%clk 0:00:09.4]}
40... g4 {[%clk 0:00:21.8]} 41. hxg4 {[%clk 0:00:07.8]} 41... hxg4 {[%clk
0:00:21.8]} 42. a6 {[%clk 0:00:08.4]} 42... g3 {[%clk 0:00:18.3]} 43. a7 {[%clk
0:00:06.9]} 43... Qh4+ {[%clk 0:00:17.9]} 44. Kg1 {[%clk 0:00:07.3]} 44... Qh2+
{[%clk 0:00:18.3]} 45. Kf1 {[%clk 0:00:07.8]} 45... Qh1+ {[%clk 0:00:18.8]} 0-1

[Event "Late-Titled-Tuesday-Blitz-September-12-2023"]
[Site "Chess.com"]
[Date "2023.09.12"]
[Round "6"]
[White "Kosak12"]
[Black "lachesisQ"]
[Result "0-1"]
[WhiteElo "2798"]
[BlackElo "3088"]
[TimeControl "180+1"]
[EndTime "15:04:07 PDT"]
[Termination "lachesisQ won by resignation"]

1. e4 {[%clk 0:02:59.8]} 1... c5 {[%clk 0:02:59.6]} 2. Nf3 {[%clk 0:02:59.7]}
2... e6 {[%clk 0:03:00.1]} 3. d4 {[%clk 0:02:59.7]} 3... cxd4 {[%clk 0:03:01]}
4. Nxd4 {[%clk 0:03:00.1]} 4... Nc6 {[%clk 0:03:01.6]} 5. Nc3 {[%clk 0:03:00.3]}
5... Qc7 {[%clk 0:03:01.7]} 6. Be3 {[%clk 0:03:00.5]} 6... a6 {[%clk 0:03:01.2]}
7. Qf3 {[%clk 0:03:00.3]} 7... Ne5 {[%clk 0:03:00.9]} 8. Qg3 {[%clk 0:03:00.5]}
8... h5 {[%clk 0:03:01.1]} 9. h4 {[%clk 0:02:55.8]} 9... Nf6 {[%clk 0:03:00.5]}
10. O-O-O {[%clk 0:02:54.2]} 10... d6 {[%clk 0:03:00.8]} 11. Be2 {[%clk
0:02:54.1]} 11... Bd7 {[%clk 0:03:00.3]} 12. Kb1 {[%clk 0:02:49.9]} 12... Rc8
{[%clk 0:03:00.1]} 13. Bg5 {[%clk 0:02:46.2]} 13... b5 {[%clk 0:02:58]} 14. f4
{[%clk 0:02:39.5]} 14... Nc4 {[%clk 0:02:13.6]} 15. Bxc4 {[%clk 0:02:39.3]}
15... Qxc4 {[%clk 0:02:13.6]} 16. e5 {[%clk 0:02:33.5]} 16... dxe5 {[%clk
0:02:11.7]} 17. fxe5 {[%clk 0:02:33.3]} 17... Ng4 {[%clk 0:02:04.9]} 18. Ne4
{[%clk 0:02:30.3]} 18... Qd5 {[%clk 0:01:23.9]} 19. Rhe1 {[%clk 0:02:19.2]}
19... Qb7 {[%clk 0:01:00.5]} 20. Qf4 {[%clk 0:01:50.6]} 20... Bc6 {[%clk
0:00:50.5]} 21. Nxc6 {[%clk 0:01:36.9]} 21... Qxc6 {[%clk 0:00:51.4]} 22. Rf1
{[%clk 0:01:37]} 22... Qc7 {[%clk 0:00:36.8]} 23. c3 {[%clk 0:01:18.5]} 23...
Nxe5 {[%clk 0:00:36.5]} 24. Bf6 {[%clk 0:00:44.1]} 24... Nd7 {[%clk 0:00:24.7]}
25. Qxc7 {[%clk 0:00:06.4]} 25... Rxc7 {[%clk 0:00:25.6]} 26. Bg5 {[%clk
0:00:07]} 26... f6 {[%clk 0:00:25.1]} 27. Be3 {[%clk 0:00:05.2]} 27... Nc5
{[%clk 0:00:24.5]} 28. Nd6+ {[%clk 0:00:04.8]} 28... Bxd6 {[%clk 0:00:18.7]} 29.
Rxd6 {[%clk 0:00:05.7]} 29... Kf7 {[%clk 0:00:18.3]} 30. Bd4 {[%clk 0:00:03.1]}
30... Ra8 {[%clk 0:00:18]} 31. Rf3 {[%clk 0:00:01.8]} 31... Ne4 {[%clk
0:00:18.1]} 32. Rb6 {[%clk 0:00:01.2]} 32... Re7 {[%clk 0:00:17.6]} 33. Kc2
{[%clk 0:00:01.5]} 33... e5 {[%clk 0:00:17.7]} 34. Be3 {[%clk 0:00:02.1]} 34...
Kg6 {[%clk 0:00:17.9]} 35. Rf1 {[%clk 0:00:01.8]} 35... Rd7 {[%clk 0:00:17.7]}
36. Rd1 {[%clk 0:00:02.1]} 36... Rxd1 {[%clk 0:00:17.4]} 37. Kxd1 {[%clk
0:00:03]} 37... Kf5 {[%clk 0:00:17.8]} 38. Ke2 {[%clk 0:00:03.6]} 38... Kg4
{[%clk 0:00:17.6]} 39. Rb7 {[%clk 0:00:04]} 39... g6 {[%clk 0:00:17.7]} 40. a4
{[%clk 0:00:03.3]} 40... bxa4 {[%clk 0:00:17.7]} 41. Rb3 {[%clk 0:00:03.7]}
41... axb3 {[%clk 0:00:17.3]} 0-1